[Event "Titled Tuesday Blitz February 01 A 2022"]
[White "Pakleza, Zbigniew"]
[Black "Xiong, Jeffery"]
[WhiteFideId "1119290"]
[BlackFideId "2047640"]
[WhiteElo "2467"]
[BlackElo "2727"]
[Result "0-1"]
[Round "03"]
[TimeControl "180+1"]
[Date "2022.02.01"]
[WhiteClock "0:00:18"]
[BlackClock "0:01:04"]

1. d4 {[%clk 0:03:00]}  g6 {[%clk 0:02:59]} 2. Nf3 {[%clk 0:02:59]}  Bg7 {[%clk 0:02:59]} 3. Bf4 {[%clk 0:02:55]}  d6 {[%clk 0:03:00]} 4. e3 {[%clk 0:02:55]}  Nd7 {[%clk 0:02:59]} 5. h3 {[%clk 0:02:56]}  e5 {[%clk 0:02:59]} 6. Bh2 {[%clk 0:02:57]}  Nh6 {[%clk 0:02:59]} 7. Be2 {[%clk 0:02:52]}  O-O {[%clk 0:02:59]} 8. O-O {[%clk 0:02:52]}  Qe7 {[%clk 0:02:54]} 9. Re1 {[%clk 0:02:49]}  f5 {[%clk 0:02:46]} 10. c4 {[%clk 0:02:43]}  Nf7 {[%clk 0:02:46]} 11. Nc3 {[%clk 0:02:42]}  c6 {[%clk 0:02:47]} 12. Rc1 {[%clk 0:02:42]}  e4 {[%clk 0:02:26]} 13. Nd2 {[%clk 0:02:42]}  Nf6 {[%clk 0:02:27]} 14. b4 {[%clk 0:02:41]}  g5 {[%clk 0:02:21]} 15. a4 {[%clk 0:02:36]}  g4 {[%clk 0:02:21]} 16. hxg4 {[%clk 0:02:29]}  fxg4 {[%clk 0:02:22]} 17. Bf4 {[%clk 0:02:20]}  h5 {[%clk 0:02:14]} 18. g3 {[%clk 0:02:15]}  Bf5 {[%clk 0:02:12]} 19. Qc2 {[%clk 0:01:49]}  Rae8 {[%clk 0:02:11]} 20. Nb3 {[%clk 0:01:27]}  Nh7 {[%clk 0:02:08]} 21. Red1 {[%clk 0:01:22]}  Nfg5 {[%clk 0:02:08]} 22. c5 {[%clk 0:01:17]}  d5 {[%clk 0:02:08]} 23. Bd6 {[%clk 0:01:12]}  Qf6 {[%clk 0:02:01]} 24. Bxf8 {[%clk 0:01:11]}  Rxf8 {[%clk 0:02:02]} 25. Bf1 {[%clk 0:00:39]}  h4 {[%clk 0:02:01]} 26. Bg2 {[%clk 0:00:37]}  Qh6 {[%clk 0:01:51]} 27. Ne2 {[%clk 0:00:34]}  Nf3+ {[%clk 0:01:50]} 28. Kf1 {[%clk 0:00:29]}  Nhg5 {[%clk 0:01:24]} 29. Nf4 {[%clk 0:00:23]}  hxg3 {[%clk 0:01:24]} 30. fxg3 {[%clk 0:00:24]}  Qh2 {[%clk 0:01:24]} 31. Qf2 {[%clk 0:00:25]}  Ne6 {[%clk 0:01:04]} 32. Ke2 {[%clk 0:00:25]}  Nxf4+ {[%clk 0:01:04]} 33. exf4 {[%clk 0:00:18]}  e3 {[%clk 0:01:04]} 0-1


[Site "https://www.chess.com"]

[Event "Titled Tuesday Blitz February 01 A 2022"]
[White "Paravyan, David"]
[Black "Valdes Romero, Leonardo"]
[WhiteFideId "4194985"]
[BlackFideId "6500331"]
[WhiteElo "2569"]
[BlackElo "2497"]
[Result "1-0"]
[Round "03"]
[TimeControl "180+1"]
[Date "2022.02.01"]
[WhiteClock "0:01:02"]
[BlackClock "0:00:30"]

1. e4 {[%clk 0:03:00]}  d6 {[%clk 0:02:58]} 2. d4 {[%clk 0:03:00]}  Nf6 {[%clk 0:02:59]} 3. Nc3 {[%clk 0:03:01]}  e5 {[%clk 0:02:59]} 4. Nf3 {[%clk 0:03:01]}  Nbd7 {[%clk 0:02:58]} 5. Bc4 {[%clk 0:03:01]}  Be7 {[%clk 0:02:58]} 6. O-O {[%clk 0:03:00]}  O-O {[%clk 0:02:59]} 7. Re1 {[%clk 0:03:00]}  c6 {[%clk 0:02:57]} 8. a4 {[%clk 0:03:01]}  b6 {[%clk 0:02:57]} 9. d5 {[%clk 0:02:49]}  cxd5 {[%clk 0:02:56]} 10. Nxd5 {[%clk 0:02:50]}  Bb7 {[%clk 0:02:55]} 11. b3 {[%clk 0:02:32]}  Rc8 {[%clk 0:02:54]} 12. Ra2 {[%clk 0:02:12]}  Nxd5 {[%clk 0:02:43]} 13. Bxd5 {[%clk 0:02:13]}  Bxd5 {[%clk 0:02:42]} 14. Qxd5 {[%clk 0:02:14]}  Nf6 {[%clk 0:02:40]} 15. Qd1 {[%clk 0:02:02]}  d5 {[%clk 0:02:39]} 16. exd5 {[%clk 0:01:57]}  Nxd5 {[%clk 0:02:38]} 17. c4 {[%clk 0:01:49]}  Bb4 {[%clk 0:01:21]} 18. cxd5 {[%clk 0:01:31]}  Bxe1 {[%clk 0:01:20]} 19. Nxe1 {[%clk 0:01:31]}  Qd7 {[%clk 0:01:10]} 20. Ba3 {[%clk 0:01:29]}  Rfd8 {[%clk 0:01:09]} 21. Rd2 {[%clk 0:01:29]}  Rc3 {[%clk 0:01:04]} 22. Bb4 {[%clk 0:01:25]}  Rcc8 {[%clk 0:01:02]} 23. Nc2 {[%clk 0:01:25]}  f5 {[%clk 0:00:58]} 24. Ne3 {[%clk 0:01:24]}  b5 {[%clk 0:00:53]} 25. axb5 {[%clk 0:01:17]}  Qxb5 {[%clk 0:00:52]} 26. Be7 {[%clk 0:01:17]}  Rd7 {[%clk 0:00:40]} 27. d6 {[%clk 0:01:18]}  f4 {[%clk 0:00:34]} 28. Nc4 {[%clk 0:01:17]}  a5 {[%clk 0:00:32]} 29. Rd5 {[%clk 0:01:11]}  Qb4 {[%clk 0:00:30]} 30. Nxe5 {[%clk 0:01:02]} 1-0


[Site "https://www.chess.com"]

[Event "Titled Tuesday Blitz February 01 A 2022"]
[White "Pranesh M"]
[Black "Orozbaev, Eldiar"]
[WhiteFideId "35028600"]
[BlackFideId "13802240"]
[WhiteElo "1866"]
[BlackElo "2050"]
[Result "1-0"]
[Round "03"]
[TimeControl "180+1"]
[Date "2022.02.01"]
[WhiteClock "0:01:21"]
[BlackClock "0:00:04"]

1. e4 {[%clk 0:03:00]}  e6 {[%clk 0:02:58]} 2. d4 {[%clk 0:03:00]}  d5 {[%clk 0:02:57]} 3. Nd2 {[%clk 0:03:01]}  c5 {[%clk 0:02:57]} 4. Ngf3 {[%clk 0:03:01]}  Nc6 {[%clk 0:02:57]} 5. Bb5 {[%clk 0:03:00]}  cxd4 {[%clk 0:02:52]} 6. Nxd4 {[%clk 0:03:01]}  Bd7 {[%clk 0:02:52]} 7. Nxc6 {[%clk 0:03:01]}  bxc6 {[%clk 0:02:52]} 8. Bd3 {[%clk 0:03:02]}  c5 {[%clk 0:02:51]} 9. exd5 {[%clk 0:03:00]}  exd5 {[%clk 0:02:52]} 10. O-O {[%clk 0:03:00]}  Nf6 {[%clk 0:02:52]} 11. b3 {[%clk 0:02:54]}  Bd6 {[%clk 0:02:51]} 12. Re1+ {[%clk 0:02:53]}  Be6 {[%clk 0:02:35]} 13. Bb5+ {[%clk 0:02:42]}  Nd7 {[%clk 0:02:34]} 14. Nc4 {[%clk 0:02:36]}  Bxh2+ {[%clk 0:02:24]} 15. Kxh2 {[%clk 0:02:34]}  dxc4 {[%clk 0:02:24]} 16. Qd6 {[%clk 0:02:00]}  Qe7 {[%clk 0:02:01]} 17. Bf4 {[%clk 0:02:00]}  Qxd6 {[%clk 0:01:51]} 18. Bxd6 {[%clk 0:02:01]}  cxb3 {[%clk 0:01:06]} 19. axb3 {[%clk 0:02:01]}  h5 {[%clk 0:00:49]} 20. Rad1 {[%clk 0:01:59]}  Rh6 {[%clk 0:00:45]} 21. Bf4 {[%clk 0:01:56]}  Rf6 {[%clk 0:00:29]} 22. Bxd7+ {[%clk 0:01:51]}  Kf8 {[%clk 0:00:30]} 23. Bd6+ {[%clk 0:01:49]}  Kg8 {[%clk 0:00:30]} 24. Bxe6 {[%clk 0:01:42]}  fxe6 {[%clk 0:00:30]} 25. f3 {[%clk 0:01:42]}  Rc8 {[%clk 0:00:25]} 26. Be5 {[%clk 0:01:40]}  Rf5 {[%clk 0:00:24]} 27. Rd7 {[%clk 0:01:40]}  Rf7 {[%clk 0:00:22]} 28. Red1 {[%clk 0:01:40]}  c4 {[%clk 0:00:21]} 29. Rxf7 {[%clk 0:01:39]}  Kxf7 {[%clk 0:00:21]} 30. Rd7+ {[%clk 0:01:39]}  Kg6 {[%clk 0:00:21]} 31. g4 {[%clk 0:01:40]}  hxg4 {[%clk 0:00:20]} 32. fxg4 {[%clk 0:01:40]}  cxb3 {[%clk 0:00:17]} 33. Rxg7+ {[%clk 0:01:39]}  Kh6 {[%clk 0:00:18]} 34. cxb3 {[%clk 0:01:38]}  Rc2+ {[%clk 0:00:18]} 35. Kg3 {[%clk 0:01:38]}  Re2 {[%clk 0:00:18]} 36. g5+ {[%clk 0:01:34]}  Kh5 {[%clk 0:00:18]} 37. Kf4 {[%clk 0:01:33]}  Rf2+ {[%clk 0:00:16]} 38. Ke3 {[%clk 0:01:33]}  Rf5 {[%clk 0:00:14]} 39. Ke4 {[%clk 0:01:27]}  a5 {[%clk 0:00:10]} 40. g6 {[%clk 0:01:24]}  Kh6 {[%clk 0:00:10]} 41. Rg8 {[%clk 0:01:22]}  Rg5 {[%clk 0:00:04]} 42. Bf4 {[%clk 0:01:21]} 1-0


[Site "https://www.chess.com"]

[Event "Titled Tuesday Blitz February 01 A 2022"]
[White "Rustemov, Alexander"]
[Black "Deac, Bogdan-Daniel"]
[WhiteFideId "4119002"]
[BlackFideId "1226380"]
[WhiteElo "2782"]
[BlackElo "2646"]
[Result "0-1"]
[Round "03"]
[TimeControl "180+1"]
[Date "2022.02.01"]
[WhiteClock "0:00:01"]
[BlackClock "0:00:04"]

1. d4 {[%clk 0:03:00]}  Nf6 {[%clk 0:02:59]} 2. c4 {[%clk 0:03:00]}  e6 {[%clk 0:02:58]} 3. Nf3 {[%clk 0:03:00]}  d5 {[%clk 0:02:58]} 4. cxd5 {[%clk 0:03:00]}  exd5 {[%clk 0:02:58]} 5. Nc3 {[%clk 0:03:00]}  Bb4 {[%clk 0:02:58]} 6. Bg5 {[%clk 0:03:00]}  h6 {[%clk 0:02:57]} 7. Bxf6 {[%clk 0:02:57]}  Qxf6 {[%clk 0:02:58]} 8. Qa4+ {[%clk 0:02:57]}  Nc6 {[%clk 0:02:58]} 9. e3 {[%clk 0:02:57]}  O-O {[%clk 0:02:58]} 10. Be2 {[%clk 0:02:58]}  Be6 {[%clk 0:02:56]} 11. O-O {[%clk 0:02:58]}  a6 {[%clk 0:02:55]} 12. Rfc1 {[%clk 0:02:57]}  Bd6 {[%clk 0:02:52]} 13. Qd1 {[%clk 0:02:58]}  g5 {[%clk 0:02:43]} 14. a3 {[%clk 0:02:53]}  g4 {[%clk 0:02:34]} 15. Ne1 {[%clk 0:02:52]}  h5 {[%clk 0:02:27]} 16. g3 {[%clk 0:02:50]}  Qg5 {[%clk 0:02:23]} 17. Ng2 {[%clk 0:02:49]}  Ne7 {[%clk 0:02:23]} 18. e4 {[%clk 0:02:37]}  c6 {[%clk 0:01:56]} 19. f4 {[%clk 0:02:23]}  gxf3 {[%clk 0:01:47]} 20. Bxf3 {[%clk 0:02:23]}  Kg7 {[%clk 0:01:25]} 21. Qe2 {[%clk 0:02:14]}  Rh8 {[%clk 0:01:19]} 22. e5 {[%clk 0:01:41]}  Bb8 {[%clk 0:00:47]} 23. Qf2 {[%clk 0:01:31]}  Nf5 {[%clk 0:00:45]} 24. Ne2 {[%clk 0:01:28]}  Ba7 {[%clk 0:00:37]} 25. Rd1 {[%clk 0:01:27]}  h4 {[%clk 0:00:25]} 26. g4 {[%clk 0:01:13]}  Ne7 {[%clk 0:00:23]} 27. h3 {[%clk 0:01:12]}  Ng6 {[%clk 0:00:22]} 28. Kh1 {[%clk 0:00:54]}  Nxe5 {[%clk 0:00:22]} 29. Nef4 {[%clk 0:00:49]}  Ng6 {[%clk 0:00:20]} 30. Nh5+ {[%clk 0:00:47]}  Kh6 {[%clk 0:00:18]} 31. Rf1 {[%clk 0:00:46]}  Raf8 {[%clk 0:00:16]} 32. Rae1 {[%clk 0:00:44]}  Bc8 {[%clk 0:00:14]} 33. Ne3 {[%clk 0:00:38]}  Rhg8 {[%clk 0:00:09]} 34. Nf5+ {[%clk 0:00:36]}  Bxf5 {[%clk 0:00:09]} 35. gxf5 {[%clk 0:00:37]}  Qxf5 {[%clk 0:00:05]} 36. Qd2+ {[%clk 0:00:30]}  Qg5 {[%clk 0:00:05]} 37. Qd1 {[%clk 0:00:18]}  Bb8 {[%clk 0:00:05]} 38. Rg1 {[%clk 0:00:17]}  Bg3 {[%clk 0:00:05]} 39. Re2 {[%clk 0:00:15]}  Nf4 {[%clk 0:00:05]} 40. Nxf4 {[%clk 0:00:13]}  Qxf4 {[%clk 0:00:05]} 41. Re5 {[%clk 0:00:10]}  f5 {[%clk 0:00:04]} 42. Re6+ {[%clk 0:00:09]}  Rg6 {[%clk 0:00:04]} 43. Qe2 {[%clk 0:00:06]}  Qg5 {[%clk 0:00:03]} 44. Rg2 {[%clk 0:00:02]}  Rxe6 {[%clk 0:00:03]} 45. Qxe6+ {[%clk 0:00:02]}  Kg7 {[%clk 0:00:04]} 46. Qd7+ {[%clk 0:00:02]}  Rf7 {[%clk 0:00:04]} 47. Qc8 {[%clk 0:00:02]}  Re7 {[%clk 0:00:04]} 48. Rg1 {[%clk 0:00:01]}  Qd2 {[%clk 0:00:04]} 0-1


[Site "https://www.chess.com"]

[Event "Titled Tuesday Blitz February 01 A 2022"]
[White "Shimanov, Aleksandr"]
[Black "Wieczorek, Oskar"]
[WhiteFideId "4198603"]
[BlackFideId "1133950"]
[WhiteElo "2636"]
[BlackElo "2319"]
[Result "1/2-1/2"]
[Round "03"]
[TimeControl "180+1"]
[Date "2022.02.01"]
[WhiteClock "0:00:10"]
[BlackClock "0:00:14"]

1. e4 {[%clk 0:03:00]}  c5 {[%clk 0:02:58]} 2. Nc3 {[%clk 0:02:57]}  g6 {[%clk 0:02:56]} 3. Nf3 {[%clk 0:02:54]}  Bg7 {[%clk 0:02:55]} 4. d4 {[%clk 0:02:43]}  cxd4 {[%clk 0:02:55]} 5. Nxd4 {[%clk 0:02:43]}  Nc6 {[%clk 0:02:56]} 6. Nxc6 {[%clk 0:02:37]}  bxc6 {[%clk 0:02:56]} 7. Bc4 {[%clk 0:02:38]}  d6 {[%clk 0:02:56]} 8. O-O {[%clk 0:02:36]}  Qc7 {[%clk 0:02:46]} 9. Bb3 {[%clk 0:02:19]}  Nf6 {[%clk 0:02:46]} 10. Re1 {[%clk 0:02:19]}  O-O {[%clk 0:02:47]} 11. f3 {[%clk 0:02:18]}  Nd7 {[%clk 0:02:38]} 12. Be3 {[%clk 0:02:18]}  Nc5 {[%clk 0:02:28]} 13. Qd2 {[%clk 0:02:17]}  a5 {[%clk 0:02:10]} 14. Bc4 {[%clk 0:01:59]}  a4 {[%clk 0:02:05]} 15. Rad1 {[%clk 0:01:51]}  Be6 {[%clk 0:01:56]} 16. Bxe6 {[%clk 0:01:49]}  Nxe6 {[%clk 0:01:55]} 17. b3 {[%clk 0:01:49]}  axb3 {[%clk 0:01:46]} 18. axb3 {[%clk 0:01:50]}  Qa5 {[%clk 0:01:47]} 19. Na4 {[%clk 0:01:46]}  Qxd2 {[%clk 0:01:47]} 20. Rxd2 {[%clk 0:01:47]}  Rfb8 {[%clk 0:01:39]} 21. Red1 {[%clk 0:01:45]}  c5 {[%clk 0:01:37]} 22. f4 {[%clk 0:01:26]}  Bd4 {[%clk 0:01:23]} 23. Bxd4 {[%clk 0:01:24]}  Nxd4 {[%clk 0:01:21]} 24. Kf2 {[%clk 0:01:22]}  f6 {[%clk 0:00:59]} 25. Ke3 {[%clk 0:01:22]}  Kf7 {[%clk 0:00:59]} 26. Nc3 {[%clk 0:01:20]}  Ra3 {[%clk 0:00:56]} 27. Ne2 {[%clk 0:01:15]}  Nxe2 {[%clk 0:00:53]} 28. Rxe2 {[%clk 0:01:15]}  c4 {[%clk 0:00:53]} 29. Kf2 {[%clk 0:01:01]}  cxb3 {[%clk 0:00:53]} 30. cxb3 {[%clk 0:01:01]}  Raxb3 {[%clk 0:00:49]} 31. Rdd2 {[%clk 0:00:56]}  R8b5 {[%clk 0:00:48]} 32. g3 {[%clk 0:00:56]}  Rb1 {[%clk 0:00:48]} 33. Kg2 {[%clk 0:00:56]}  Rc1 {[%clk 0:00:48]} 34. Rf2 {[%clk 0:00:56]}  h5 {[%clk 0:00:48]} 35. Rde2 {[%clk 0:00:56]}  Rcc5 {[%clk 0:00:46]} 36. Kf3 {[%clk 0:00:53]}  f5 {[%clk 0:00:45]} 37. exf5 {[%clk 0:00:53]}  gxf5 {[%clk 0:00:44]} 38. Kg2 {[%clk 0:00:53]}  Rc3 {[%clk 0:00:43]} 39. Kh3 {[%clk 0:00:53]}  Rb8 {[%clk 0:00:30]} 40. Kh4 {[%clk 0:00:53]}  Rg8 {[%clk 0:00:28]} 41. Rc2 {[%clk 0:00:32]}  Rxc2 {[%clk 0:00:21]} 42. Rxc2 {[%clk 0:00:32]}  Kg6 {[%clk 0:00:20]} 43. Re2 {[%clk 0:00:32]}  Kf6 {[%clk 0:00:19]} 44. Rd2 {[%clk 0:00:27]}  Rd8 {[%clk 0:00:19]} 45. Kh3 {[%clk 0:00:14]}  d5 {[%clk 0:00:19]} 46. Kg2 {[%clk 0:00:10]}  d4 {[%clk 0:00:17]} 47. Kf3 {[%clk 0:00:10]}  e5 {[%clk 0:00:17]} 48. fxe5+ {[%clk 0:00:11]}  Kxe5 {[%clk 0:00:18]} 49. Ra2 {[%clk 0:00:11]}  d3 {[%clk 0:00:18]} 50. Ke3 {[%clk 0:00:12]}  Rd5 {[%clk 0:00:12]} 51. Rd2 {[%clk 0:00:11]}  f4+ {[%clk 0:00:10]} 52. gxf4+ {[%clk 0:00:12]}  Kf5 {[%clk 0:00:11]} 53. Rxd3 {[%clk 0:00:08]}  Rxd3+ {[%clk 0:00:12]} 54. Kxd3 {[%clk 0:00:09]}  Kxf4 {[%clk 0:00:13]} 55. Ke2 {[%clk 0:00:09]}  Kg4 {[%clk 0:00:13]} 56. Kf2 {[%clk 0:00:10]}  Kh3 {[%clk 0:00:14]} 57. Kg1 {[%clk 0:00:10]} 1/2-1/2


[Site "https://www.chess.com"]

[Event "Titled Tuesday Blitz February 01 A 2022"]
[White "Sviridov, Valery"]
[Black "Davtyan, Artur"]
[WhiteFideId "4120680"]
[BlackFideId "13308327"]
[WhiteElo "2454"]
[BlackElo "2311"]
[Result "1-0"]
[Round "03"]
[TimeControl "180+1"]
[Date "2022.02.01"]
[WhiteClock "0:00:58"]
[BlackClock "0:00:03"]

1. d4 {[%clk 0:03:00]}  d5 {[%clk 0:02:59]} 2. Nf3 {[%clk 0:02:58]}  Nf6 {[%clk 0:02:59]} 3. e3 {[%clk 0:02:58]}  c6 {[%clk 0:02:56]} 4. c4 {[%clk 0:02:57]}  e6 {[%clk 0:02:53]} 5. Nc3 {[%clk 0:02:57]}  Nbd7 {[%clk 0:02:53]} 6. Qc2 {[%clk 0:02:57]}  Bd6 {[%clk 0:02:53]} 7. b3 {[%clk 0:02:56]}  O-O {[%clk 0:02:53]} 8. Bb2 {[%clk 0:02:57]}  b6 {[%clk 0:02:53]} 9. Bd3 {[%clk 0:02:57]}  Bb7 {[%clk 0:02:53]} 10. O-O {[%clk 0:02:57]}  Qe7 {[%clk 0:02:54]} 11. Rfe1 {[%clk 0:02:56]}  dxc4 {[%clk 0:02:53]} 12. Bxc4 {[%clk 0:02:51]}  e5 {[%clk 0:02:53]} 13. e4 {[%clk 0:02:52]}  Rfe8 {[%clk 0:02:04]} 14. Rad1 {[%clk 0:02:45]}  Rad8 {[%clk 0:02:00]} 15. Ng5 {[%clk 0:02:43]}  Rf8 {[%clk 0:02:00]} 16. f4 {[%clk 0:02:42]}  exd4 {[%clk 0:02:00]} 17. e5 {[%clk 0:02:40]}  Bc5 {[%clk 0:01:58]} 18. exf6 {[%clk 0:02:33]}  d3+ {[%clk 0:01:39]} 19. Kf1 {[%clk 0:02:19]}  Qxe1+ {[%clk 0:01:14]} 20. Rxe1 {[%clk 0:02:20]}  dxc2 {[%clk 0:01:15]} 21. fxg7 {[%clk 0:02:20]}  Kxg7 {[%clk 0:01:13]} 22. Nce4+ {[%clk 0:02:12]}  Kg8 {[%clk 0:01:08]} 23. Bd3 {[%clk 0:02:12]}  f6 {[%clk 0:00:38]} 24. Ne6 {[%clk 0:02:04]}  Bb4 {[%clk 0:00:38]} 25. Nxd8 {[%clk 0:01:53]}  Bxe1 {[%clk 0:00:30]} 26. Nxb7 {[%clk 0:01:53]}  Bb4 {[%clk 0:00:28]} 27. Bxc2 {[%clk 0:01:53]}  f5 {[%clk 0:00:21]} 28. Ned6 {[%clk 0:01:46]}  Nf6 {[%clk 0:00:16]} 29. Bxf5 {[%clk 0:01:45]}  Kg7 {[%clk 0:00:14]} 30. Ne4 {[%clk 0:01:44]}  Be7 {[%clk 0:00:13]} 31. Nbd6 {[%clk 0:01:39]}  Rd8 {[%clk 0:00:12]} 32. g4 {[%clk 0:01:39]}  Kf8 {[%clk 0:00:11]} 33. Nxf6 {[%clk 0:01:37]}  Bxf6 {[%clk 0:00:10]} 34. Bxf6 {[%clk 0:01:36]}  Rxd6 {[%clk 0:00:11]} 35. g5 {[%clk 0:01:33]}  Rd2 {[%clk 0:00:11]} 36. h4 {[%clk 0:01:31]}  Rh2 {[%clk 0:00:11]} 37. Bxh7 {[%clk 0:01:29]}  Rxh4 {[%clk 0:00:11]} 38. Bd3 {[%clk 0:01:18]}  Rxf4+ {[%clk 0:00:12]} 39. Ke2 {[%clk 0:01:19]}  a5 {[%clk 0:00:12]} 40. Ke3 {[%clk 0:01:19]}  Rg4 {[%clk 0:00:11]} 41. Bf5 {[%clk 0:01:19]}  Rg1 {[%clk 0:00:11]} 42. g6 {[%clk 0:01:18]}  Re1+ {[%clk 0:00:10]} 43. Kf4 {[%clk 0:01:19]}  b5 {[%clk 0:00:10]} 44. Be4 {[%clk 0:01:16]}  Rf1+ {[%clk 0:00:09]} 45. Kg5 {[%clk 0:01:16]}  Rc1 {[%clk 0:00:04]} 46. Bf5 {[%clk 0:01:06]}  Re1 {[%clk 0:00:03]} 47. Bc3 {[%clk 0:00:58]}  Rg1+ {[%clk 0:00:03]} 48. Kf6 {[%clk 0:00:59]}  b4 {[%clk 0:00:04]} 49. Bd4 {[%clk 0:00:59]}  Rc1 {[%clk 0:00:03]} 50. g7+ {[%clk 0:00:58]} 1-0


[Site "https://www.chess.com"]

[Event "Titled Tuesday Blitz February 01 A 2022"]
[White "Terry, Renato"]
[Black "Tabatabaei, M. Amin"]
[WhiteFideId "3803457"]
[BlackFideId "12521213"]
[WhiteElo "2577"]
[BlackElo "2585"]
[Result "1-0"]
[Round "03"]
[TimeControl "180+1"]
[Date "2022.02.01"]
[WhiteClock "0:00:04"]
[BlackClock "0:00:02"]

1. d4 {[%clk 0:03:00]}  Nf6 {[%clk 0:02:58]} 2. Bg5 {[%clk 0:03:01]}  c5 {[%clk 0:02:57]} 3. Bxf6 {[%clk 0:02:59]}  exf6 {[%clk 0:02:55]} 4. dxc5 {[%clk 0:02:56]}  Bxc5 {[%clk 0:02:55]} 5. e3 {[%clk 0:02:57]}  Qb6 {[%clk 0:02:55]} 6. Qc1 {[%clk 0:02:52]}  d5 {[%clk 0:02:53]} 7. c3 {[%clk 0:02:51]}  Nc6 {[%clk 0:02:53]} 8. Nf3 {[%clk 0:02:50]}  O-O {[%clk 0:02:54]} 9. Be2 {[%clk 0:02:40]}  Re8 {[%clk 0:02:54]} 10. b4 {[%clk 0:02:32]}  Bd6 {[%clk 0:02:52]} 11. O-O {[%clk 0:02:26]}  Bg4 {[%clk 0:02:51]} 12. Nbd2 {[%clk 0:02:21]}  Rac8 {[%clk 0:02:52]} 13. Qb2 {[%clk 0:02:18]}  Ne5 {[%clk 0:02:48]} 14. Rac1 {[%clk 0:02:03]}  Bf5 {[%clk 0:02:46]} 15. Nd4 {[%clk 0:02:00]}  Nd3 {[%clk 0:02:45]} 16. Bxd3 {[%clk 0:01:57]}  Bxd3 {[%clk 0:02:46]} 17. Rfd1 {[%clk 0:01:56]}  h5 {[%clk 0:02:41]} 18. Qb3 {[%clk 0:01:54]}  Red8 {[%clk 0:02:34]} 19. a3 {[%clk 0:01:51]}  Qa6 {[%clk 0:02:31]} 20. a4 {[%clk 0:01:38]}  Bb8 {[%clk 0:02:26]} 21. N2f3 {[%clk 0:01:30]}  Be4 {[%clk 0:02:22]} 22. Nd2 {[%clk 0:01:19]}  Qd6 {[%clk 0:02:17]} 23. Nf1 {[%clk 0:01:19]}  h4 {[%clk 0:02:14]} 24. h3 {[%clk 0:01:17]}  Qe5 {[%clk 0:02:09]} 25. f3 {[%clk 0:00:59]}  Bg6 {[%clk 0:02:07]} 26. Re1 {[%clk 0:00:55]}  a6 {[%clk 0:02:05]} 27. Rcd1 {[%clk 0:00:51]}  Rc4 {[%clk 0:01:58]} 28. e4 {[%clk 0:00:49]}  Rdc8 {[%clk 0:01:58]} 29. exd5 {[%clk 0:00:49]}  Qd6 {[%clk 0:01:54]} 30. Ne2 {[%clk 0:00:47]}  b5 {[%clk 0:01:53]} 31. axb5 {[%clk 0:00:47]}  axb5 {[%clk 0:01:54]} 32. Rd2 {[%clk 0:00:39]}  Re8 {[%clk 0:01:50]} 33. Red1 {[%clk 0:00:30]}  Bf5 {[%clk 0:01:40]} 34. Nd4 {[%clk 0:00:27]}  Bd7 {[%clk 0:01:40]} 35. Re2 {[%clk 0:00:20]}  Rec8 {[%clk 0:01:28]} 36. Rd3 {[%clk 0:00:20]}  Qxd5 {[%clk 0:01:24]} 37. Qd1 {[%clk 0:00:18]}  Rxc3 {[%clk 0:01:14]} 38. Rxc3 {[%clk 0:00:17]}  Rxc3 {[%clk 0:01:15]} 39. Rd2 {[%clk 0:00:18]}  Rc7 {[%clk 0:00:50]} 40. Nb3 {[%clk 0:00:14]}  Qf5 {[%clk 0:00:28]} 41. Kh1 {[%clk 0:00:13]}  Ba7 {[%clk 0:00:26]} 42. Nd4 {[%clk 0:00:08]}  Bxd4 {[%clk 0:00:24]} 43. Rxd4 {[%clk 0:00:09]}  Be6 {[%clk 0:00:24]} 44. Rxh4 {[%clk 0:00:08]}  Rc8 {[%clk 0:00:13]} 45. Rd4 {[%clk 0:00:08]}  g5 {[%clk 0:00:10]} 46. Ng3 {[%clk 0:00:08]}  Qe5 {[%clk 0:00:09]} 47. Ne4 {[%clk 0:00:08]}  Kg7 {[%clk 0:00:09]} 48. Nd6 {[%clk 0:00:07]}  Rh8 {[%clk 0:00:09]} 49. Rd2 {[%clk 0:00:03]}  Bxh3 {[%clk 0:00:08]} 50. gxh3 {[%clk 0:00:04]}  Rxh3+ {[%clk 0:00:09]} 51. Kg1 {[%clk 0:00:04]}  Qg3+ {[%clk 0:00:05]} 52. Rg2 {[%clk 0:00:04]}  Qxf3 {[%clk 0:00:06]} 53. Qxf3 {[%clk 0:00:04]}  Rxf3 {[%clk 0:00:07]} 54. Rd2 {[%clk 0:00:04]}  Rb3 {[%clk 0:00:06]} 55. Rd4 {[%clk 0:00:03]}  Kg6 {[%clk 0:00:06]} 56. Nxb5 {[%clk 0:00:04]}  f5 {[%clk 0:00:06]} 57. Nc7 {[%clk 0:00:03]}  f4 {[%clk 0:00:06]} 58. Nd5 {[%clk 0:00:04]}  Kf5 {[%clk 0:00:04]} 59. Kf2 {[%clk 0:00:04]}  Ke5 {[%clk 0:00:04]} 60. Rd2 {[%clk 0:00:03]}  g4 {[%clk 0:00:04]} 61. Ne7 {[%clk 0:00:04]}  f5 {[%clk 0:00:02]} 62. Nc6+ {[%clk 0:00:04]}  Ke4 {[%clk 0:00:02]} 63. Rd4# {[%clk 0:00:04]} 1-0


[Site "https://www.chess.com"]

[Event "Titled Tuesday Blitz February 01 A 2022"]
[White "Vasquez Schroeder, Rodrigo"]
[Black "Karabalis, Harilos"]
[WhiteFideId "3400042"]
[BlackFideId "4621808"]
[WhiteElo "2568"]
[BlackElo "2168"]
[Result "1-0"]
[Round "03"]
[TimeControl "180+1"]
[Date "2022.02.01"]
[WhiteClock "0:02:42"]
[BlackClock "0:02:41"]

1. e4 {[%clk 0:03:00]}  d6 {[%clk 0:02:57]} 2. d4 {[%clk 0:03:00]}  Nf6 {[%clk 0:02:58]} 3. Nc3 {[%clk 0:03:00]}  Nbd7 {[%clk 0:02:57]} 4. Nf3 {[%clk 0:02:59]}  e5 {[%clk 0:02:56]} 5. Bc4 {[%clk 0:02:59]}  Be7 {[%clk 0:02:56]} 6. O-O {[%clk 0:03:00]}  O-O {[%clk 0:02:56]} 7. Qe2 {[%clk 0:03:00]}  c6 {[%clk 0:02:57]} 8. Rd1 {[%clk 0:03:00]}  a6 {[%clk 0:02:56]} 9. dxe5 {[%clk 0:02:59]}  dxe5 {[%clk 0:02:54]} 10. Nxe5 {[%clk 0:02:59]}  Qc7 {[%clk 0:02:53]} 11. Nxd7 {[%clk 0:02:55]}  Bxd7 {[%clk 0:02:53]} 12. e5 {[%clk 0:02:51]}  Ne8 {[%clk 0:02:43]} 13. Rxd7 {[%clk 0:02:41]}  Qxd7 {[%clk 0:02:41]} 14. e6 {[%clk 0:02:42]} 1-0


[Site "https://www.chess.com"]